bitfinex/quotes_ETHUSD_20250801
["timestamp","ask_amount","ask_price","bid_price","bid_amount"]
[1754051165172,13.36340762,3643.2,3643.1,0.01]
[1754051165338,9.11040762,3643.2,3643.1,0.01]
[1754051165533,13.36340762,3643.2,3643.1,0.01]
[1754051165739,3.0,3643.1,3641.4,0.1476]
[1754051165934,0.1376,3642.2,3641.4,0.1476]
[1754051166138,0.1376,3642.2,3641.1,1.01]
[1754051166139,17.82709986,3642.2,3641.1,1.01]
[1754051166364,18.78470483,3642.2,3641.1,1.01]
[1754051166877,18.78570483,3642.2,3641.1,1.01]
[1754051167085,14.53170483,3642.2,3641.1,1.01]
[1754051167396,0.68111151,3642.2,3641.1,1.01]
[1754051167702,6.98979942,3642.2,3641.8,0.1476]
[1754051167906,6.98979942,3642.2,3641.7,0.1568]
[1754051167907,10.9886,3642.2,3641.7,0.1568]
[1754051168075,10.9886,3642.2,3642.1,0.3144]
[1754051168076,4.254,3642.2,3642.1,0.3144]
[1754051168975,10.0,3642.4,3642.1,0.3144]
[1754051169164,4.254,3642.3,3642.2,0.3044]
[1754051169358,10.0,3642.4,3642.1,0.01]
[1754051169562,4.254,3642.3,3642.1,0.01]
[1754051169959,4.254,3642.3,3642.2,0.3044]
[1754051170906,4.254,3642.3,3642.1,0.012]
[1754051171064,4.254,3642.3,3642.2,0.1476]
[1754051171491,10.0,3642.4,3642.1,0.1688]
[1754051171713,4.3916,3642.3,3642.2,0.3044]
[1754051171876,4.3916,3642.3,3642.1,0.012]
[1754051172076,0.1376,3642.3,3642.2,0.1476]
[1754051172276,0.1376,3642.3,3642.2,0.3044]
[1754051172277,4.254,3642.3,3642.2,0.3044]
[1754051175020,16.7346,3642.8,3642.2,0.3044]
[1754051175514,16.7346,3642.8,3642.6,0.1376]
[1754051175515,4.254,3642.7,3642.6,0.1376]
[1754051175684,6.597,3642.8,3642.7,0.1476]
[1754051175873,10.851,3642.8,3642.7,0.3044]
[1754051176068,6.597,3642.8,3642.7,0.3044]
[1754051176268,4.254,3642.8,3642.7,0.3044]
[1754051176571,10.1376,3643.1,3642.7,0.3044]
[1754051176779,4.254,3643.0,3642.6,0.1376]
[1754051176982,4.6844,3643.0,3642.6,0.1376]
[1754051177302,0.8952,3642.9,3642.2,0.25472667]
[1754051177503,0.8952,3642.9,3642.3,0.25472667]
[1754051177504,0.1376,3642.7,3642.3,0.25472667]
[1754051177703,4.254,3642.6,3642.3,0.25472667]
[1754051177905,4.254,3642.6,3642.2,0.1376]
[1754051178091,4.254,3642.6,3642.3,0.25524276]
[1754051178481,0.1376,3642.5,3642.3,0.25524276]
[1754051178690,0.1376,3642.5,3642.4,0.25524276]
[1754051178893,4.3916,3642.5,3642.2,0.25524276]
[1754051179091,4.254,3642.4,3642.3,0.55964276]
[1754051179393,4.254,3642.4,3642.3,0.90680704]
[1754051179980,10.1376,3642.9,3642.3,1.05440704]
[1754051180179,4.50860649,3642.8,3642.4,0.25524276]
[1754051180504,0.2558201,3642.7,3642.5,0.25524276]
[1754051180701,10.6024,3642.9,3642.6,0.25581199]
[1754051180904,4.253,3642.8,3642.6,0.25581199]
[1754051181103,0.25581839,3642.7,3642.4,0.25581839]
[1754051181402,4.50881839,3642.6,3642.5,0.2558469]
[1754051181610,4.50881839,3642.6,3642.1,0.012]
[1754051181611,4.97361839,3642.6,3642.2,0.1376]
[1754051181809,0.25581839,3642.5,3642.3,0.255995]
[1754051182025,4.253,3642.4,3642.2,0.1376]
[1754051182172,4.253,3642.4,3642.3,0.2559919]
[1754051184370,4.50922797,3642.4,3642.3,0.2559919]
[1754051184596,14.50922797,3642.4,3642.3,0.2559919]
[1754051185234,14.253,3642.4,3642.3,0.2559919]
[1754051185553,0.1376,3642.8,3642.3,0.6979919]
[1754051185717,4.50927896,3642.7,3642.4,0.5603919]
[1754051185917,4.253,3642.7,3642.5,0.2559919]
[1754051186121,10.0,3643.0,3642.6,0.2559919]
[1754051186321,4.50929709,3642.9,3642.7,0.2559919]
[1754051186520,4.50929709,3642.9,3642.6,0.2944]
[1754051186521,4.253,3642.9,3642.8,0.2559919]
[1754051186720,4.50931998,3642.9,3642.8,0.2559919]
[1754051187654,4.97411998,3642.9,3642.8,0.2559919]
[1754051188019,5.40451998,3642.9,3642.8,0.2559919]
[1754051188759,15.40451998,3642.9,3642.6,0.1376]
[1754051188983,1.15151998,3642.8,3642.7,0.25642496]
[1754051189339,1.15151998,3642.8,3642.1,0.012]
[1754051189560,5.54227615,3642.7,3642.2,0.25647025]
[1754051189759,1.15167615,3642.6,3642.3,0.25647025]
[1754051189974,4.50947615,3642.5,3642.4,0.25647025]
[1754051190183,0.25647615,3642.5,3642.4,0.25647025]
[1754051190355,4.253,3642.5,3642.4,0.39407025]
[1754051190558,4.50947615,3642.5,3642.4,0.39407025]
[1754051190746,0.25647615,3642.5,3642.4,0.39407025]
[1754051190941,16.598,3642.8,3642.4,0.54167025]
[1754051191176,4.50968763,3642.7,3642.5,0.40407025]
[1754051191475,4.253,3642.7,3642.6,0.25647025]
[1754051191637,4.253,3642.7,3642.6,0.39407025]
[1754051192661,6.598,3642.8,3642.6,0.39407025]
[1754051192866,6.598,3642.8,3642.7,0.25647025]
[1754051193061,10.85,3642.8,3642.7,0.25647025]
[1754051193270,10.85,3642.8,3642.7,0.25679415]
[1754051193751,6.598,3642.8,3642.7,0.25679415]
[1754051193951,10.85,3642.8,3642.7,0.49370012]
[1754051195175,10.85,3642.8,3642.7,0.25679415]
[1754051196273,10.85,3642.8,3642.6,0.1376]
[1754051196483,10.85,3642.8,3642.7,0.25683971]
[1754051196658,6.598,3642.8,3642.7,0.25683971]
[1754051196845,10.85,3642.8,3642.7,0.25683971]
[1754051197180,10.67129568,3642.8,3642.7,0.47899024]
[1754051197474,10.67129568,3642.8,3642.7,0.25683971]
[1754051197778,11.13609568,3642.8,3642.7,0.25683971]
[1754051198843,10.67129568,3642.8,3642.7,0.25683971]
[1754051199389,4.252,3642.8,3642.7,0.25683971]
[1754051201084,4.252,3642.8,3642.7,0.25717965]
[1754051201578,4.7168,3642.8,3642.7,0.25717965]
[1754051201881,5.1472,3642.8,3642.7,0.25717965]
[1754051202081,5.1472,3642.8,3642.6,0.1376]
[1754051202243,4.6824,3642.8,3642.7,0.25717978]
[1754051202846,5.1472,3642.8,3642.7,0.25717978]
[1754051203274,10.001,3643.0,3642.7,0.47936432]
[1754051203476,4.251,3642.9,3642.8,0.25717978]
[1754051203780,4.7158,3642.9,3642.8,0.25717978]
[1754051203999,5.1462,3642.9,3642.8,0.39477978]
[1754051204664,5.1462,3642.9,3642.8,0.39478231]
[1754051205107,5.1462,3642.9,3642.8,0.39478543]
[1754051207652,5.176,3642.9,3642.8,0.39478543]
[1754051207814,15.176,3642.9,3642.8,0.39478543]
[1754051208171,15.176,3642.9,3642.3,0.002]
[1754051208372,14.251,3642.9,3642.6,0.1376]
[1754051208714,0.925,3642.8,3642.7,0.25719528]
[1754051209066,0.925,3642.8,3642.7,0.25719103]
[1754051210619,10.925,3642.8,3642.7,0.25719103]
[1754051210912,12.4427,3642.8,3642.7,0.25719103]
[1754051211102,12.83752797,3642.8,3642.7,0.25719103]
[1754051211274,12.83752797,3642.8,3642.7,0.25723101]
[1754051214113,12.83752797,3642.8,3642.3,0.002]
[1754051214320,0.1376,3642.6,3642.4,0.25727968]
[1754051214505,5.175,3642.5,3642.3,0.002]
[1754051214707,5.175,3642.5,3642.4,0.25727635]
[1754051214941,4.6821,3642.5,3642.4,0.25727635]
[1754051215166,5.175,3642.5,3642.4,0.25727635]
[1754051215488,15.175,3642.5,3642.4,0.25727635]
[1754051217227,15.175,3642.5,3642.4,0.25730058]
[1754051218209,16.70626,3642.5,3642.4,0.25730058]
[1754051219241,16.96353655,3642.5,3642.4,0.25730058]
[1754051222010,19.70890374,3642.5,3642.4,0.25730058]
[1754051222203,2.74544256,3642.4,3642.3,0.002]
[1754051222429,11.19931906,3642.4,3642.3,0.002]
[1754051222671,11.98106912,3642.4,3642.3,0.002]
[1754051223039,12.53095819,3642.4,3642.3,0.002]
[1754051223212,26.82512292,3642.4,3642.3,0.002]
[1754051223718,36.82512292,3642.4,3642.3,0.002]
[1754051224839,25.53095819,3642.4,3642.3,0.002]
[1754051225222,24.98095819,3642.4,3642.3,0.002]
[1754051225427,21.98095819,3642.4,3642.3,0.002]
[1754051225652,26.22995819,3642.4,3642.3,0.002]
[1754051225958,21.98095819,3642.4,3642.3,0.002]
[1754051226113,23.48380672,3642.4,3642.3,0.002]
[1754051226447,26.22924928,3642.4,3642.3,0.002]
[1754051227245,21.98024928,3642.4,3642.3,0.002]
[1754051227548,26.22924928,3642.4,3642.3,0.002]
[1754051229245,26.77924928,3642.4,3642.3,0.002]
[1754051229649,21.84264928,3642.4,3642.3,0.002]
[1754051229838,26.22924928,3642.4,3642.3,0.002]
[1754051233618,26.77924928,3642.4,3642.3,0.002]
[1754051237752,29.77924928,3642.4,3642.3,0.002]
[1754051238640,29.77824928,3642.4,3642.3,0.002]
[1754051238846,29.77820697,3642.4,3642.3,0.002]
[1754051239047,29.52179257,3642.4,3642.3,0.002]
[1754051239356,29.52279257,3642.4,3642.3,0.002]
[1754051240663,29.77931397,3642.4,3642.3,0.002]
[1754051240852,36.35748718,3642.4,3642.3,0.002]
[1754051242760,36.35648718,3642.4,3642.3,0.002]
[1754051243784,2.74634735,3641.2,3641.1,1.01]
[1754051244105,11.63852135,3641.2,3641.1,1.1794]
[1754051244592,14.5224687,3641.2,3641.1,1.1794]
[1754051245081,14.5224687,3641.2,3641.1,1.01]
[1754051246571,24.5224687,3641.2,3641.1,1.01]
[1754051251268,24.5224687,3641.2,3641.1,1.26723145]
[1754051251488,24.52317763,3641.2,3641.1,1.26723033]
[1754051251692,24.52317763,3641.2,3641.1,1.01]
[1754051252261,24.52317763,3641.2,3641.1,1.26735219]
[1754051254094,24.52317763,3641.2,3641.1,1.26734608]
[1754051254270,26.19812769,3641.2,3641.1,1.01]
[1754051255092,19.06412774,3641.2,3641.1,1.01]
[1754051255959,16.31778039,3641.2,3640.1,0.01]
[1754051256177,2.74699855,3640.4,3640.1,0.01]
[1754051256373,4.50423033,3640.3,3640.1,0.01]
[1754051256670,3.14193213,3640.2,3640.1,0.01]
[1754051257093,4.03513213,3640.2,3640.1,0.01]
[1754051257413,0.25723033,3640.2,3640.1,0.01]
[1754051257561,14.64183033,3640.2,3640.1,0.01]
[1754051257868,10.39483033,3640.2,3640.1,0.01]
[1754051258191,14.64183033,3640.2,3640.1,0.01]
[1754051258758,14.64183033,3640.2,3640.1,0.012]
[1754051260311,18.28213213,3640.2,3640.1,0.012]
[1754051260595,19.74631516,3640.2,3640.1,0.012]
[1754051260775,16.99921336,3640.2,3640.1,0.012]
[1754051261103,18.28213213,3640.2,3640.1,0.012]
[1754051261690,17.38893213,3640.2,3640.1,0.012]
[1754051261995,15.53503033,3640.2,3640.1,0.012]
[1754051262593,10.25723033,3640.2,3639.9,0.0814]
[1754051262800,14.247,3640.2,3640.1,0.1568]
[1754051262995,10.0,3640.2,3640.1,0.1568]
[1754051263176,14.247,3640.2,3640.1,0.1568]
[1754051263589,10.1376,3640.7,3640.1,0.1568]
[1754051263904,4.50387988,3640.6,3640.1,0.50588354]
[1754051264147,0.1376,3640.4,3639.9,0.1376]
[1754051264286,4.247,3640.3,3639.9,0.1376]
[1754051264484,0.1376,3640.4,3640.0,0.1568]
[1754051264697,14.247,3640.3,3640.1,0.3758]
[1754051264897,10.0,3640.3,3640.1,0.1376]
[1754051265298,4.247,3640.2,3640.1,0.1376]
[1754051265918,10.0,3640.5,3640.1,0.3758]
[1754051266328,10.0,3640.5,3639.4,5.74768786]
[1754051266329,4.247,3640.4,3640.2,0.2382]
[1754051266624,4.247,3640.4,3640.3,0.3758]
[1754051268829,4.247,3640.4,3640.3,0.209]
[1754051269062,4.247,3640.4,3640.3,0.1276]
[1754051269592,4.247,3640.4,3640.3,0.3658]
[1754051269792,4.247,3640.4,3640.3,0.70238]
[1754051270804,4.247,3640.4,3640.3,0.54558]
[1754051271947,4.247,3640.4,3640.3,0.46418]
[1754051274012,4.247,3640.4,3640.3,0.54558]
[1754051274611,4.247,3640.4,3640.3,0.46418]
[1754051275915,4.247,3640.4,3640.3,0.70238]
[1754051276109,4.247,3640.4,3640.3,0.3658]
[1754051277320,4.247,3640.4,3640.3,0.1276]
[1754051277628,4.247,3640.4,3640.3,0.3658]
[1754051278031,10.0,3641.3,3640.8,3.0]
[1754051278231,0.4812,3641.2,3640.9,1.6173284]
[1754051278449,10.0,3641.3,3640.9,1.6173284]
[1754051278651,0.01,3641.9,3641.2,0.1376]
[1754051278652,0.4812,3641.8,3641.2,0.1376]
[1754051278816,0.4812,3641.8,3641.7,11.29400017]
[1754051279223,0.01,3641.9,3641.7,11.29400017]
[1754051279554,0.01,3641.9,3641.8,1.14316002]
[1754051279718,0.4912,3641.9,3641.8,1.28076002]
[1754051280437,0.01,3641.9,3641.8,1.28076002]
[1754051281311,0.01,3641.9,3641.8,4.28076002]
[1754051281549,0.001,3642.8,3641.9,0.55]
[1754051281716,0.001,3642.8,3642.7,11.29400017]
[1754051282053,0.001,3642.8,3642.7,14.43160017]
[1754051282216,0.001,3642.8,3642.7,14.51300017]
[1754051282548,0.4822,3642.8,3642.7,3.1376]
[1754051282776,0.912,3642.8,3642.7,3.1376]
[1754051283051,0.912,3642.8,3642.7,3.0]
[1754051283345,0.912,3642.8,3642.0,1.63090191]
[1754051283648,0.911,3642.7,3642.4,0.1376]
[1754051283848,0.001,3642.8,3642.2,0.55]
[1754051284024,0.001,3642.8,3642.7,3.1376]
[1754051285513,0.001,3642.8,3642.7,3.219]
[1754051285710,0.001,3642.8,3642.7,6.14846862]
[1754051285932,0.01,3642.9,3642.7,8.48909682]
[1754051286145,0.01,3642.9,3642.8,0.2382]
[1754051286538,0.01,3642.9,3642.7,5.50568036]
[1754051287960,0.01,3642.9,3642.8,6.56079251]
[1754051288124,0.01,3642.9,3642.8,3.7882]
[1754051288324,0.001,3643.0,3642.9,3.55]
[1754051288560,0.001,3643.0,3642.9,6.53326574]
[1754051288856,0.001,3643.0,3642.9,6.67086574]
[1754051289155,0.001,3643.2,3642.9,6.67086574]
[1754051289156,0.001,3643.2,3643.1,5.74491504]
[1754051289522,0.001,3643.2,3643.1,5.96391504]
[1754051289731,0.001,3643.2,3643.1,4.31744023]
[1754051291346,0.001,3643.4,3643.2,3.55]
[1754051291527,0.001,3643.4,3643.3,18.08233493]
[1754051291726,0.001,3643.4,3643.3,18.21993493]
[1754051291926,0.001,3643.4,3643.3,20.74254395]
[1754051292365,0.001,3643.4,3643.3,20.19254395]
[1754051292575,0.4822,3643.4,3643.3,20.19254395]
[1754051293341,0.001,3643.4,3643.3,20.19254395]
[1754051293944,0.001,3643.4,3643.3,20.40201696]
[1754051294658,0.90691357,3643.6,3643.4,3.0]
[1754051294858,0.90691357,3643.6,3643.5,2.3264417]
[1754051295025,0.01,3643.9,3643.5,2.4640417]
[1754051295231,0.01,3643.9,3643.8,0.1376]
[1754051296730,0.5016,3643.9,3643.8,0.1376]
[1754051297952,0.01,3643.9,3643.8,0.6876]
[1754051298154,0.01,3643.9,3643.8,1.61845956]
[1754051298741,0.01,3643.9,3643.8,1.06845956]
[1754051298942,0.9722,3643.9,3643.8,1.06845956]
[1754051299679,0.9722,3643.9,3643.8,0.1376]
[1754051300350,0.9722,3643.9,3643.3,0.20947301]
[1754051300545,0.9722,3643.9,3642.7,18.08233493]
[1754051300546,0.9622,3643.8,3643.5,0.1376]
[1754051300786,0.9622,3643.8,3643.1,0.20510074]
[1754051300934,0.9622,3643.7,3643.3,0.1376]
[1754051301247,0.9622,3643.6,3643.3,0.1376]
[1754051301445,0.9622,3643.6,3642.8,3.0]
[1754051301446,0.9622,3643.6,3643.5,0.1376]
[1754051303137,0.9622,3643.6,3642.3,0.55]
[1754051303373,0.9622,3643.5,3643.3,0.1376]
[1754051303782,0.1476,3643.9,3643.3,0.1376]
[1754051303943,0.9622,3643.4,3643.3,0.1376]
[1754051304549,10.9622,3643.4,3643.3,0.1376]
[1754051305655,0.9622,3643.4,3643.3,0.1376]
[1754051306478,1.21802952,3643.4,3641.8,17.75133493]
[1754051306643,0.9622,3643.3,3641.9,3.55]
[1754051306842,0.9622,3643.3,3642.0,5.42081194]
[1754051307071,10.0,3643.4,3642.0,5.62661247]
[1754051307343,1.21822897,3643.3,3642.0,5.62661247]
[1754051307572,1.21822897,3643.2,3642.0,5.62661247]
[1754051307773,1.21822897,3643.1,3642.0,2.62661247]
[1754051307977,0.25607194,3643.0,3642.0,0.20580053]
[1754051308163,0.9622,3643.0,3641.7,3.0]
[1754051308365,0.9622,3643.0,3641.1,2.75640954]
[1754051308366,1.21853311,3642.9,3641.1,2.75642194]
[1754051308565,10.0,3642.7,3641.6,17.53233493]
[1754051308775,0.9622,3642.6,3641.7,4.75323349]
[1754051309081,0.9622,3642.5,3641.7,4.75323349]
[1754051309285,0.9622,3642.4,3641.7,4.75323349]
[1754051309465,0.4916,3642.3,3641.7,4.75323349]
[1754051309787,0.4916,3642.3,3641.8,2.22855684]
[1754051310147,10.0,3642.7,3641.9,3.55]
[1754051310352,0.25650336,3642.6,3642.3,3.0]
[1754051310595,0.4916,3643.2,3642.4,0.9299]
[1754051310802,0.25664334,3643.1,3642.9,3.0]
[1754051310965,0.25664334,3643.0,3642.9,3.02745065]
[1754051311165,10.0,3643.6,3642.9,3.02745065]
[1754051311508,0.25673198,3643.5,3642.9,3.02745065]
[1754051311667,0.25673198,3643.4,3643.0,0.219]
[1754051311985,0.25673198,3643.3,3643.1,2.09122349]
[1754051312217,0.011,3643.9,3643.1,2.09122349]
[1754051312371,0.4916,3643.3,3642.9,3.0]
[1754051312556,10.0,3643.8,3642.9,3.0]
[1754051312757,0.4916,3643.2,3642.9,3.0]
[1754051313093,0.9622,3643.1,3642.3,5.74549968]
[1754051313391,0.9622,3643.1,3642.4,0.55]
[1754051313592,0.9622,3643.1,3642.3,3.0]
[1754051314152,10.0,3643.3,3642.3,3.0]
[1754051314153,10.0,3643.3,3642.8,17.53233493]
[1754051314356,10.0,3643.3,3642.9,3.3799]
[1754051314556,0.9622,3643.7,3643.0,2.36573731]
[1754051314791,0.25681632,3643.6,3643.0,2.36573731]
[1754051314988,0.9622,3643.7,3643.0,2.36573731]
[1754051315202,0.25681571,3643.6,3643.0,2.36573731]
[1754051315362,10.011,3643.9,3643.0,5.11067425]
[1754051315557,0.25680781,3643.8,3643.2,3.0]
[1754051315760,0.011,3643.9,3643.2,3.0]
[1754051315997,0.011,3643.9,3643.5,3.0]
[1754051316209,0.011,3643.9,3643.6,0.55]
[1754051316367,0.011,3643.9,3643.8,0.1376]
[1754051316574,0.011,3643.9,3643.8,0.54435]
[1754051317495,0.9732,3643.9,3643.8,0.1376]
[1754051318131,1.2299575,3643.9,3642.9,3.0]
[1754051318285,1.2189575,3643.8,3643.4,0.1376]
[1754051318626,0.2567575,3643.7,3643.4,0.1376]
[1754051318780,0.25677926,3643.6,3643.4,0.1376]
[1754051318978,0.9622,3643.6,3643.4,0.1376]
[1754051319279,0.9622,3643.6,3642.5,0.2063505]
[1754051319280,1.21898284,3643.5,3642.5,0.2063505]
[1754051319475,1.21898284,3643.4,3643.0,0.1376]
[1754051319816,10.4916,3643.5,3643.2,0.1376]
[1754051320346,10.4916,3643.5,3643.4,0.1376]
[1754051320479,10.0,3643.5,3643.4,0.1376]
[1754051320816,10.4916,3643.8,3643.4,0.1376]
[1754051320989,10.4916,3643.8,3643.1,3.0]
[1754051321311,10.4916,3643.8,3643.7,0.1376]
[1754051321312,10.0,3643.8,3643.7,0.1376]
[1754051321815,0.011,3643.9,3643.7,0.1376]
[1754051321991,0.5026,3643.9,3643.7,0.1376]
[1754051322988,0.4816,3643.9,3643.7,0.1376]
[1754051323235,0.4916,3643.8,3643.7,0.1376]
[1754051324020,0.4816,3643.9,3643.7,0.1376]
[1754051324415,0.9732,3643.9,3643.7,0.1376]
[1754051324889,0.9622,3643.8,3643.7,0.1376]
[1754051325591,10.9622,3643.8,3643.7,0.1376]
[1754051328019,10.9622,3643.8,3643.6,0.1376]
[1754051328020,12.05952,3643.8,3643.6,0.1376]
[1754051328221,0.9688,3643.7,3642.9,0.002]
[1754051328398,8.10279995,3643.7,3642.9,0.002]
[1754051328598,0.9688,3643.6,3642.9,0.002]
[1754051328822,1.21569006,3643.5,3642.9,0.002]
[1754051329219,7.13399995,3643.7,3642.9,0.002]
[1754051329220,0.75436137,3643.4,3642.9,0.002]
[1754051329426,0.9688,3643.4,3642.9,0.002]
[1754051329701,10.0,3643.2,3642.9,0.002]
[1754051330530,0.9688,3643.1,3642.9,0.002]
[1754051330702,10.9688,3643.1,3642.9,0.002]
[1754051330898,0.9688,3643.0,3642.9,0.002]
[1754051331547,10.0,3643.3,3642.9,0.002]
[1754051331733,10.4975,3643.3,3642.9,0.002]
[1754051331902,10.0,3643.3,3642.9,0.002]
[1754051332108,0.4975,3643.2,3642.9,0.002]
[1754051332348,0.9688,3643.2,3642.9,0.002]
[1754051332649,0.4975,3643.1,3642.9,0.002]
[1754051332852,10.0,3643.4,3642.9,0.002]
[1754051333209,10.0,3643.4,3643.1,17.53233493]
[1754051333410,10.0,3643.4,3643.2,4.75343349]
[1754051333610,0.4975,3643.8,3643.2,4.75343349]
[1754051335342,10.011,3643.9,3643.2,4.75343349]
[1754051335520,0.011,3643.9,3643.2,4.97243349]
[1754051336043,0.011,3643.9,3643.5,3.0]
[1754051336210,0.011,3643.9,3643.6,0.65136496]
[1754051336541,0.011,3643.9,3643.7,0.02744463]
[1754051336708,0.011,3643.9,3643.6,0.65136496]
[1754051338348,0.011,3643.9,3643.8,0.1376]
[1754051338548,0.011,3643.9,3643.8,0.02744387]
[1754051338749,0.011,3643.9,3643.8,3.5842841]
[1754051339048,0.011,3643.9,3643.8,3.8032841]
[1754051339257,0.011,3643.9,3643.8,3.5842841]
[1754051339952,0.011,3643.9,3643.8,3.55684023]
[1754051340260,0.011,3643.9,3643.8,0.55684023]
[1754051340459,0.001,3644.3,3643.9,0.55]
[1754051340825,0.001,3644.3,3644.2,0.1376]
[1754051341326,0.4985,3644.3,3644.2,0.1376]
[1754051341527,0.9698,3644.3,3644.2,0.1376]
[1754051343528,0.4985,3644.3,3644.2,0.1376]
[1754051343849,0.001,3644.3,3644.2,0.1376]
[1754051346528,0.001,3644.3,3644.2,20.66993493]
[1754051346768,0.001,3644.3,3644.2,23.11382842]
[1754051349068,0.001,3644.3,3644.2,5.58149349]
[1754051349264,0.001,3644.3,3644.2,3.1376]
[1754051353460,0.001,3644.3,3644.2,6.45912735]
[1754051353632,0.001,3644.3,3644.2,6.81158649]
[1754051354263,0.001,3644.3,3644.2,3.6876]
[1754051354472,0.001,3644.3,3644.2,6.43168649]
[1754051354768,0.001,3644.3,3644.2,7.43171461]
[1754051355773,0.001,3644.3,3644.2,4.68762812]
[1754051355962,0.001,3644.3,3644.2,7.43171461]
[1754051356271,0.001,3644.3,3644.2,4.68762812]
[1754051357172,0.001,3644.3,3644.2,7.43171461]
[1754051358356,0.001,3644.3,3644.2,4.68762812]
[1754051358563,0.001,3644.3,3644.2,7.43171461]
[1754051359070,0.001,3644.3,3644.2,4.68762812]
[1754051359854,0.001,3644.3,3644.2,7.43171461]
[1754051364477,0.01,3644.9,3644.4,0.55]
[1754051364690,0.01,3644.9,3644.6,3.55]
[1754051364839,0.01,3644.9,3644.6,3.29377425]
[1754051365181,0.4703,3644.9,3644.8,0.6868]
[1754051365972,0.4703,3644.9,3644.8,0.89647923]
[1754051367250,0.9141,3644.9,3644.8,0.89647923]
[1754051367452,0.9141,3644.9,3644.8,1.33601173]
[1754051368682,0.4703,3644.9,3644.8,1.33601173]
[1754051370469,0.4703,3644.9,3644.8,0.89647923]
[1754051370669,0.4703,3644.9,3644.8,3.89647923]
[1754051371074,0.4703,3644.9,3644.8,3.64011399]
[1754051371678,0.4703,3644.9,3644.8,0.89647923]
[1754051371876,0.01,3644.9,3644.8,3.64011399]
[1754051372072,0.01,3644.9,3644.8,1.58189835]
[1754051372273,0.01,3644.9,3644.8,4.58189835]
[1754051372665,0.4703,3644.9,3644.8,1.58189835]
[1754051373251,0.9141,3644.9,3644.8,0.34647923]
[1754051374291,0.9141,3644.9,3644.8,0.20967923]
[1754051374501,0.9141,3644.9,3644.7,0.1368]
[1754051374697,10.01,3644.9,3644.7,0.1368]
[1754051375000,0.9041,3644.8,3644.7,0.1368]
[1754051376582,10.9041,3644.8,3644.7,0.1368]
[1754051379006,0.9041,3644.8,3644.7,0.1368]
[1754051379675,10.9041,3644.8,3644.7,0.1368]
[1754051380074,10.9041,3644.8,3644.7,0.33807118]
[1754051380270,10.4603,3644.8,3644.7,0.20127118]
[1754051380478,10.4603,3644.8,3644.7,0.1368]
[1754051380676,0.4603,3644.8,3644.7,0.1368]
[1754051381508,4.8203,3644.8,3644.7,0.1368]
[1754051383179,4.8203,3644.8,3644.7,0.33827727]
[1754051384109,4.36,3644.8,3644.7,0.88827727]
[1754051384820,4.8203,3644.8,3644.7,0.33827727]
[1754051385104,5.2641,3644.8,3644.7,0.33827727]
[1754051386973,4.36,3644.8,3644.7,0.20147727]
[1754051387172,4.36,3644.8,3644.7,1.1321]
[1754051387501,4.36,3644.8,3644.7,1.3511]
[1754051388689,4.36,3644.8,3644.7,1.55896618]
[1754051388914,4.36,3644.8,3644.7,1.7148628]
[1754051389116,0.01,3644.9,3644.8,0.55]
[1754051389294,0.01,3644.9,3644.8,1.24173634]
[1754051390221,0.01,3645.9,3645.0,3.0]
[1754051390437,0.01,3645.9,3645.1,1.24852958]
[1754051390715,0.01,3645.9,3645.8,0.6868]
[1754051391126,0.01,3645.9,3645.8,1.1321]
[1754051392216,0.01,3645.9,3645.8,1.3511]
[1754051392862,0.01,3645.9,3645.8,0.6868]
[1754051393268,0.01,3645.9,3645.8,1.1321]
[1754051393568,0.01,3645.9,3645.8,1.48895311]
[1754051395863,10.001,3647.8,3645.9,0.55]
[1754051396068,0.4513,3647.5,3646.0,0.6643]
[1754051396219,10.001,3647.8,3646.2,0.55]
[1754051396564,10.001,3647.8,3646.4,0.55]
[1754051396760,0.001,3647.8,3646.6,0.55]
[1754051396912,0.001,3647.8,3646.8,0.55]
[1754051397111,0.001,3647.8,3646.9,0.02742054]
[1754051397315,0.001,3647.8,3647.0,0.55]
[1754051397535,0.001,3647.8,3647.1,0.02741904]
[1754051397744,0.001,3647.8,3647.2,0.55]
[1754051398132,0.001,3647.8,3646.5,0.46052542]
[1754051398133,0.001,3647.8,3647.4,0.55]
[1754051398333,0.001,3647.8,3647.5,0.02741603]
[1754051398521,0.001,3647.8,3647.6,0.55]
[1754051398723,0.001,3647.8,3647.7,0.02741453]
[1754051398935,0.001,3647.8,3647.7,1.24171453]
[1754051399154,0.001,3647.8,3647.7,1.42088598]
[1754051399346,0.001,3647.8,3647.7,1.17447145]
[1754051399540,0.001,3647.8,3647.7,1.39347145]
[1754051399857,0.001,3647.8,3647.7,1.50326345]
[1754051400351,0.001,3647.8,3647.7,0.83896345]
[1754051400519,0.001,3647.8,3647.7,1.35150653]
[1754051400716,0.001,3647.8,3647.7,1.324092]
[1754051400942,0.001,3647.8,3647.7,1.105092]
[1754051401140,0.001,3647.8,3647.7,0.659792]
[1754051401545,0.001,3647.8,3644.3,1.677]
[1754051401546,0.1,3644.6,3644.3,1.677]
[1754051401755,28.36520917,3639.8,3639.7,13.74119429]
[1754051401930,28.36520917,3639.8,3639.2,2.74785667]
[1754051401931,21.54625893,3639.8,3639.2,2.74785667]
[1754051402145,8.46095469,3639.8,3639.6,0.1]
[1754051402347,0.576305,3644.3,3640.0,0.1]
[1754051402547,0.55,3644.2,3640.7,0.825134]